fUSD/lending_fUSD_20240528
["ID","MTS","AMOUNT","RATE_DAILY","PERIOD"]
[328127650,1716910251714,-500.0,0.00028219,2]
[328127651,1716910251724,-500.0,0.00028219,2]
[328127652,1716910251734,-500.0,0.00028219,2]
[328127653,1716910251743,-500.0,0.00028219,2]
[328127654,1716910251753,-696.91,0.00028219,2]
[328127655,1716910251763,-500.0,0.00028219,2]
[328127656,1716910251772,-500.0,0.00028219,2]
[328127657,1716910251782,-500.0,0.00028219,2]
[328127658,1716910251791,-637.5,0.00028219,2]
[328127659,1716910251800,-500.0,0.00028219,2]
[328127660,1716910251810,-500.0,0.00028219,2]
[328127661,1716910251820,-500.0,0.00028219,2]
[328127662,1716910251830,-500.0,0.00028219,2]
[328127663,1716910251840,-500.0,0.00028219,2]
[328127664,1716910251849,-500.0,0.00028219,2]
[328127665,1716910251859,-2035.74,0.00028219,2]
[328127666,1716910251869,-500.0,0.00028219,2]
[328127667,1716910251879,-500.0,0.00028219,2]
[328127668,1716910251888,-500.0,0.00028219,2]
[328127669,1716910251898,-500.0,0.00028219,2]
[328127670,1716910251908,-500.0,0.00028219,2]
[328127671,1716910251917,-639.9246142,0.00028219,2]
[328127672,1716910251928,-572.79205796,0.00028219,2]
[328127673,1716910251937,-500.0,0.00028219,2]
[328127674,1716910251950,-500.0,0.00028219,2]
[328127675,1716910251965,-500.0,0.00028219,2]
[328127676,1716910251977,-628.86268748,0.0002829,2]
[328127677,1716910251987,-509.92,0.00028319,2]
[328127678,1716910251997,-989.17242389,0.00028329,2]
[328127679,1716910252006,-278.24931682,0.00028379,2]
[328127680,1716910252019,-151.40096085,0.00028379,2]
[328127681,1716910252028,-214.59492178,0.00028391,2]
[328127682,1716910252038,-1807.67972816,0.00028413,2]
[328127683,1716910252048,-154.55028085,0.00028431,2]
[328127684,1716910252058,-500.0,0.00028493,2]
[328127685,1716910252067,-500.0,0.00028493,2]
[328127686,1716910252077,-640.72171237,0.00028493,2]
[328127687,1716910252087,-508.92211022,0.00028493,2]
[328127688,1716910252096,-3757.66,0.00028493,2]
[328127689,1716910252106,-500.0,0.00028493,2]
[328127690,1716910252115,-500.0,0.00028493,2]
[328127691,1716910252125,-500.0,0.00028493,2]
[328127692,1716910252134,-220.80148246,0.00028493,2]
[328127693,1716910252143,-500.0,0.00028493,2]
[328127694,1716910252153,-500.0,0.00028493,2]
[328127695,1716910252162,-500.0,0.00028493,2]
[328127696,1716910252172,-500.0,0.00028493,2]
[328127697,1716910252181,-500.0,0.00028493,2]
[328127698,1716910252190,-151.0,0.00028493,7]
[328127699,1716910252199,-500.0,0.00028493,2]
[328127700,1716910252213,-500.0,0.00028493,2]
[328127701,1716910252222,-500.0,0.00028493,2]
[328127702,1716910252232,-500.0,0.00028493,2]
[328127703,1716910252240,-500.0,0.00028493,2]
[328127704,1716910252249,-154.112419,0.00028493,7]
[328127705,1716910252259,-154.112419,0.00028493,7]
[328127706,1716910252268,-151.0,0.00028493,7]
[328127707,1716910252278,-151.0,0.00028493,7]
[328127708,1716910252287,-151.0,0.00028493,7]
[328127709,1716910252297,-500.0,0.00028493,2]
[328127710,1716910252306,-151.0,0.00028493,7]
[328127711,1716910252315,-543.58694695,0.00028493,2]
[328127712,1716910252324,-500.0,0.00028493,2]
[328127713,1716910252333,-509.43436,0.00028493,7]
[328127714,1716910252342,-509.43436,0.00028493,7]
[328127715,1716910252351,-6398.3,0.00028493,2]
[328127716,1716910252360,-500.0,0.00028493,2]
[328127717,1716910252369,-247.60779247,0.00028493,2]
[328127718,1716910252378,-151.0,0.00028493,7]
[328127719,1716910252387,-500.0,0.00028493,2]
[328127720,1716910252397,-518.2083712,0.00028493,2]
[328127721,1716910252407,-500.0,0.00028493,2]
[328127722,1716910252416,-500.0,0.00028493,2]
[328127723,1716910252426,-500.0,0.00028493,2]
[328127724,1716910252435,-560.14,0.00028493,2]
[328127725,1716910252444,-550.08320057,0.00028493,2]
[328127726,1716910252458,-243.53626586,0.00028493,2]
[328127727,1716910252471,-500.0,0.00028493,2]
[328127728,1716910252481,-500.0,0.00028493,2]
[328127729,1716910252600,-266.18,0.00028493,2]
[328127730,1716910252609,-500.0,0.00028493,2]
[328127731,1716910252619,-500.0,0.00028493,2]
[328127732,1716910252628,-500.0,0.00028493,2]
[328127733,1716910252638,-500.0,0.00028493,2]
[328127734,1716910252648,-500.0,0.00028493,2]
[328127735,1716910252657,-500.0,0.00028493,2]
[328127736,1716910252666,-500.0,0.00028493,2]
[328127737,1716910252675,-602.24,0.00028493,2]
[328127738,1716910252685,-500.0,0.00028493,2]
[328127739,1716910252694,-500.0,0.00028493,2]
[328127740,1716910252708,-500.0,0.00028493,2]
[328127741,1716910252717,-500.0,0.00028493,2]
[328127742,1716910252727,-500.0,0.00028493,2]
[328127743,1716910252736,-500.0,0.00028493,2]
[328127744,1716910252745,-500.0,0.00028493,2]
[328127745,1716910252755,-500.0,0.00028493,2]
[328127746,1716910252764,-500.0,0.00028493,2]
[328127747,1716910252772,-174.77014179,0.00028493,2]
[328127748,1716910253224,-184.66,0.00010959,2]
[328127749,1716910253234,-880.53269208,0.0001261,2]
[328127750,1716910253243,-1590.20339058,0.000142,2]
[328127751,1716910253254,-523.55681014,0.000142,2]
[328127752,1716910253265,-769.96443153,0.000142,2]
[328127753,1716910253277,-35060.27536775,0.000142,2]
[328127754,1716910253286,-500.0,0.00018396,2]
[328127755,1716910253295,-500.0,0.00018396,2]
[328127756,1716910253304,-500.0,0.00018396,2]
[328127757,1716910253313,-500.0,0.00018396,2]
[328127758,1716910253321,-500.0,0.00018396,2]
[328127759,1716910253331,-500.0,0.00018396,2]
[328127760,1716910253340,-500.0,0.00018396,2]
[328127761,1716910253349,-500.0,0.00018396,2]
[328127762,1716910253358,-500.0,0.00018396,2]
[328127763,1716910253367,-500.0,0.00018396,2]
[328127764,1716910253376,-500.0,0.00018396,2]
[328127765,1716910253386,-500.0,0.00018396,2]
[328127766,1716910253395,-500.0,0.00018396,2]
[328127767,1716910253404,-512.2903843,0.00027397,2]
[328127768,1716910253413,-766.25,0.00027397,10]
[328127769,1716910253423,-425.12768991,0.00028219,2]
[328127770,1716910253432,-325.22985821,0.00028493,2]
[328127771,1716910253441,-500.0,0.00028493,2]
[328127772,1716910253450,-500.0,0.00028493,2]
[328127773,1716910253464,-500.0,0.00028493,2]
[328127774,1716910253473,-500.0,0.00028493,2]
[328127775,1716910253483,-769.78,0.00028493,2]
[328127776,1716910253491,-500.0,0.00028493,2]
[328127777,1716910253501,-500.0,0.00028493,2]
[328127778,1716910253510,-500.0,0.00028493,2]
[328127779,1716910253519,-500.0,0.00028493,2]
[328127780,1716910253529,-500.0,0.00028493,2]
[328127781,1716910253538,-500.0,0.00028493,2]
[328127782,1716910253548,-500.0,0.00028493,2]
[328127783,1716910253557,-500.0,0.00028493,2]
[328127784,1716910253566,-500.0,0.00028493,2]
[328127785,1716910253576,-500.0,0.00028493,2]
[328127786,1716910253585,-500.0,0.00028493,2]
[328127787,1716910253594,-760.43,0.00028493,2]
[328127788,1716910253603,-500.0,0.00028493,2]
[328127789,1716910253612,-500.0,0.00028493,2]
[328127790,1716910253621,-500.0,0.00028493,2]
[328127791,1716910253630,-500.0,0.00028493,2]
[328127792,1716910253640,-500.0,0.00028493,2]
[328127793,1716910253649,-467.41,0.00028493,2]
[328127794,1716910253658,-500.0,0.00028493,2]
[328127795,1716910253667,-500.0,0.00028493,2]
[328127796,1716910253676,-1465.17,0.00028493,2]
[328127797,1716910253685,-500.0,0.00028493,2]
[328127798,1716910253694,-635.92,0.00028493,2]
[328127799,1716910253706,-500.0,0.00028493,2]
[328127800,1716910253715,-166.215434,0.00028493,7]
[328127801,1716910253725,-500.0,0.00028493,2]
[328127802,1716910253734,-500.0,0.00028493,2]
[328127803,1716910253743,-500.0,0.00028493,2]
[328127804,1716910253755,-159.931036,0.00028493,7]
[328127805,1716910253764,-1820.24,0.00028493,2]
[328127806,1716910253774,-500.0,0.00028493,2]
[328127807,1716910253783,-151.0,0.00028493,7]
[328127808,1716910253794,-500.0,0.00028493,2]
[328127809,1716910253803,-500.0,0.00028493,2]
[328127810,1716910253812,-500.0,0.00028493,2]
[328127811,1716910253821,-500.0,0.00028493,2]
[328127812,1716910253830,-500.0,0.00028493,2]
[328127813,1716910253840,-696.91,0.00028493,2]
[328127814,1716910253849,-500.0,0.00028493,2]
[328127815,1716910253859,-227.88822419,0.00028493,2]
[328127816,1716910253868,-630.64,0.00028493,2]
[328127817,1716910253877,-637.5,0.00028493,2]
[328127818,1716910253887,-500.0,0.00028493,2]
[328127819,1716910253896,-500.0,0.00028493,2]
[328127820,1716910253906,-151.0,0.00028493,7]
[328127821,1716910253914,-500.0,0.00028493,2]
[328127822,1716910253924,-500.0,0.00028493,2]
[328127823,1716910253938,-500.0,0.00028493,2]
[328127824,1716910253948,-2035.74,0.00028493,2]
[328127825,1716910253961,-500.0,0.00028493,2]
[328127826,1716910253970,-500.0,0.00028493,2]
[328127827,1716910253981,-500.0,0.00028493,2]
[328127828,1716910253990,-500.0,0.00028493,2]
[328127829,1716910254000,-522.97987574,0.00028493,2]
[328127830,1716910254011,-500.0,0.00028493,2]
[328127831,1716910254021,-167.82,0.00028493,2]
[328127832,1716910254031,-500.0,0.00028493,2]
[328127833,1716910254040,-1000.0,0.000285,5]
[328127834,1716910254049,-150.0,0.000285,5]
[328127835,1716910254059,-628.86268748,0.00028509,2]
[328127836,1716910254068,-628.86268748,0.00028523,2]
[328127837,1716910254078,-628.86268748,0.00028528,2]
[328127838,1716910254088,-170.5945697,0.00028552,2]
[328127839,1716910254098,-300.0,0.00028571,2]
[328127840,1716910254108,-151.40096085,0.00028579,2]
[328127841,1716910254117,-203.35423541,0.00028646,2]
[328127842,1716910254126,-222.57973072,0.00028667,2]
[328127843,1716910254136,-800.0,0.0002867,2]
[328127844,1716910254145,-151.40096085,0.00028738,2]
[328127845,1716910254155,-500.0,0.00028767,2]
[328127846,1716910254164,-3757.66,0.00028767,2]
[328127847,1716910254174,-500.0,0.00028767,2]
[328127848,1716910254184,-500.0,0.00028767,2]
[328127849,1716910254194,-500.0,0.00028767,2]
[328127850,1716910254206,-500.0,0.00028767,2]
[328127851,1716910254216,-500.0,0.00028767,2]
[328127852,1716910254225,-227.75,0.00028767,2]
[328127853,1716910254233,-500.0,0.00028767,2]
[328127854,1716910254241,-225.35,0.00028767,2]
[328127855,1716910254249,-633.67413843,0.00028767,2]
[328127856,1716910254257,-510.9588845,0.00028767,2]
[328127857,1716910254266,-500.0,0.00028767,2]
[328127858,1716910254275,-500.0,0.00028767,2]
[328127859,1716910254285,-500.0,0.00028767,2]
[328127860,1716910254294,-6398.3,0.00028767,2]
[328127861,1716910254304,-418.28051965,0.00028767,2]
[328127862,1716910254313,-500.0,0.00028767,2]
[328127863,1716910254323,-500.0,0.00028767,2]
[328127864,1716910254332,-604.4769593,0.00028767,2]
[328127865,1716910254341,-560.14,0.00028767,2]
[328127866,1716910254350,-500.0,0.00028767,2]
[328127867,1716910254360,-500.0,0.00028767,2]
[328127868,1716910254369,-500.0,0.00028767,2]
[328127869,1716910254378,-212.89,0.00028767,2]
[328127870,1716910254388,-500.0,0.00028767,2]
[328127871,1716910254397,-500.0,0.00028767,2]
[328127872,1716910254406,-500.0,0.00028767,2]
[328127873,1716910254416,-500.0,0.00028767,2]
[328127874,1716910254426,-480.32,0.00028767,2]
[328127875,1716910254543,-500.0,0.00028767,2]
[328127876,1716910254556,-500.0,0.00028767,2]
[328127877,1716910254565,-398.85499393,0.00028767,2]
[328127878,1716910254575,-506.32,0.00028767,2]
[328127879,1716910254584,-506.32,0.00028767,2]
[328127880,1716910254594,-506.32,0.00028767,2]
[328127881,1716910254604,-506.32,0.00028767,2]
[328127882,1716910254614,-506.32,0.00028767,2]
[328127883,1716910254623,-506.32,0.00028767,2]
[328127884,1716910254633,-500.0,0.00028767,2]
[328127885,1716910254642,-500.0,0.00028767,2]
[328127886,1716910254651,-500.0,0.00028767,2]
[328127887,1716910254661,-579.0,0.00028767,2]
[328127888,1716910254670,-219.23,0.00028767,2]
[328127889,1716910254680,-315.11,0.00028767,2]
[328127890,1716910254689,-500.0,0.00028767,2]
[328127891,1716910254698,-500.0,0.00028767,2]
[328127892,1716910254710,-500.0,0.00028767,2]
[328127893,1716910254720,-500.0,0.00028767,2]
[328127894,1716910254729,-769.78,0.00028767,2]
[328127895,1716910254739,-500.0,0.00028767,2]
[328127896,1716910254749,-500.0,0.00028767,2]
[328127897,1716910254759,-500.0,0.00028767,2]
[328127898,1716910254768,-500.0,0.00028767,2]
[328127899,1716910254778,-500.0,0.00028767,2]
[328127900,1716910254788,-500.0,0.00028767,2]
[328127901,1716910254798,-500.0,0.00028767,2]
[328127902,1716910254808,-533.26346148,0.00028767,2]
[328127903,1716910254818,-500.0,0.00028767,2]
[328127904,1716910254827,-500.0,0.00028767,2]
[328127905,1716910254837,-500.0,0.00028767,2]
[328127906,1716910254847,-760.43,0.00028767,2]
[328127907,1716910254857,-207.29,0.00028767,2]
[328127908,1716910254868,-500.0,0.00028767,2]
[328127909,1716910254878,-407.68,0.00028767,2]
[328127910,1716910254888,-500.0,0.00028767,2]
[328127911,1716910254898,-500.0,0.00028767,2]
[328127912,1716910254909,-500.0,0.00028767,2]
[328127913,1716910254918,-500.0,0.00028767,2]
[328127914,1716910254929,-1465.17,0.00028767,2]
[328127915,1716910254942,-500.0,0.00028767,2]
[328127916,1716910254953,-500.0,0.00028767,2]
[328127917,1716910254970,-500.0,0.00028767,2]
[328127918,1716910254979,-500.0,0.00028767,2]
[328127919,1716910254989,-500.0,0.00028767,2]
[328127920,1716910254998,-1820.24,0.00028767,2]
[328127921,1716910255010,-500.0,0.00028767,2]
[328127922,1716910255023,-500.0,0.00028767,2]
[328127923,1716910255032,-500.0,0.00028767,2]
[328127924,1716910255042,-500.0,0.00028767,2]
[328127925,1716910255052,-500.0,0.00028767,2]
[328127926,1716910255062,-500.0,0.00028767,2]
[328127927,1716910255072,-696.91,0.00028767,2]
[328127928,1716910255081,-500.0,0.00028767,2]
[328127929,1716910255092,-637.5,0.00028767,2]
[328127930,1716910255102,-500.0,0.00028767,2]
[328127931,1716910255112,-500.0,0.00028767,2]
[328127932,1716910255122,-500.0,0.00028767,2]
[328127933,1716910255132,-500.0,0.00028767,2]
[328127934,1716910255142,-500.0,0.00028767,2]
[328127935,1716910255151,-2035.74,0.00028767,2]
[328127936,1716910255161,-268.97331482,0.00028767,2]
[328127937,1716910255171,-500.0,0.00028767,2]
[328127938,1716910255181,-588.2613472,0.00028767,2]
[328127939,1716910255191,-500.0,0.00028767,2]
[328127940,1716910255201,-500.0,0.00028767,2]
[328127941,1716910255217,-341.92104159,0.00028767,2]
[328127942,1716910255226,-155.51610014,0.00028783,2]
[328127943,1716910255236,-11630.84327209,0.000288,2]
[328127944,1716910255246,-155.465397,0.000288,7]
[328127945,1716910255256,-153.82568732,0.00028813,2]
[328127946,1716910255266,-169.1813528,0.00028835,2]
[328127947,1716910255276,-157.53000092,0.00028836,2]
[328127948,1716910255286,-151.40096085,0.00028849,2]
[328127949,1716910255295,-157.53000092,0.0002886,2]
[328127950,1716910255305,-278.24931682,0.00028876,2]
[328127951,1716910255315,-158.19046212,0.00028893,2]
[328127952,1716910255325,-155.30238598,0.000289,2]
[328127953,1716910255335,-163.02468081,0.00028911,2]
[328127954,1716910255344,-278.24931682,0.00028915,2]
[328127955,1716910255354,-300.0,0.00028942,2]
[328127956,1716910255364,-1807.67972816,0.0002897,2]
[328127957,1716910255373,-1000.0,0.00029,5]
[328127958,1716910255383,-8479.35196452,0.00029,2]
[328127959,1716910255392,-10545.69276405,0.00029,5]
[328127960,1716910255402,-1514.66353373,0.00029,30]
[328127961,1716910255411,-5000.0,0.00029,2]
[328127962,1716910255420,-1483.6790455,0.00029,2]
[328127963,1716910255430,-1150.0,0.00029,2]
[328127964,1716910255439,-150.0,0.00029,6]
[328127965,1716910255449,-9795.97906374,0.00029008,2]
[328127966,1716910255461,-500.0,0.00029041,2]
[328127967,1716910255471,-3757.66,0.00029041,2]
[328127968,1716910255480,-500.0,0.00029041,2]
[328127969,1716910255490,-500.0,0.00029041,2]
[328127970,1716910255499,-500.0,0.00029041,2]
[328127971,1716910255508,-500.0,0.00029041,2]
[328127972,1716910255518,-500.0,0.00029041,2]
[328127973,1716910255528,-500.0,0.00029041,2]
[328127974,1716910255537,-411.58004078,0.00029041,2]
[328127975,1716910255547,-500.0,0.00029041,2]
[328127976,1716910255556,-500.0,0.00029041,2]
[328127977,1716910255566,-6398.3,0.00029041,2]
[328127978,1716910255576,-500.0,0.00029041,2]
[328127979,1716910255585,-500.0,0.00029041,2]
[328127980,1716910255594,-560.14,0.00029041,2]
[328127981,1716910255604,-500.0,0.00029041,2]
[328127982,1716910255614,-500.0,0.00029041,2]
[328127983,1716910255623,-500.0,0.00029041,2]
[328127984,1716910255633,-500.0,0.00029041,2]
[328127985,1716910255642,-500.0,0.00029041,2]
[328127986,1716910255652,-500.0,0.00029041,2]
[328127987,1716910255661,-500.0,0.00029041,2]
[328127988,1716910255670,-500.0,0.00029041,2]
[328127989,1716910255680,-500.0,0.00029041,2]
[328127990,1716910255690,-506.32,0.00029041,2]
[328127991,1716910255699,-500.0,0.00029041,2]
[328127992,1716910255711,-501.87,0.00029041,2]
[328127993,1716910255721,-500.0,0.00029041,2]
[328127994,1716910255731,-500.0,0.00029041,2]
[328127995,1716910255740,-500.0,0.00029041,2]
[328127996,1716910255750,-769.78,0.00029041,2]
[328127997,1716910255760,-500.0,0.00029041,2]
[328127998,1716910255769,-500.0,0.00029041,2]
[328127999,1716910255778,-500.0,0.00029041,2]
[328128000,1716910255788,-500.0,0.00029041,2]
[328128001,1716910255798,-520.79,0.00029041,2]
[328128002,1716910255807,-500.0,0.00029041,2]
[328128003,1716910255816,-500.0,0.00029041,2]
[328128004,1716910255825,-500.0,0.00029041,2]
[328128005,1716910255835,-500.0,0.00029041,2]
[328128006,1716910255845,-760.43,0.00029041,2]
[328128007,1716910255854,-500.0,0.00029041,2]
[328128008,1716910255863,-500.0,0.00029041,2]
[328128009,1716910255873,-500.0,0.00029041,2]
[328128010,1716910255882,-500.0,0.00029041,2]
[328128011,1716910255892,-483.7,0.00029041,2]
[328128012,1716910255902,-500.0,0.00029041,2]
[328128013,1716910255912,-1465.17,0.00029041,2]
[328128014,1716910255921,-500.0,0.00029041,2]
[328128015,1716910255933,-500.0,0.00029041,2]
[328128016,1716910255943,-500.0,0.00029041,2]
[328128017,1716910255954,-500.0,0.00029041,2]
[328128018,1716910255969,-500.0,0.00029041,2]
[328128019,1716910255979,-1820.24,0.00029041,2]
[328128020,1716910255988,-500.0,0.00029041,2]
[328128021,1716910255997,-500.0,0.00029041,2]
[328128022,1716910256006,-500.0,0.00029041,2]
[328128023,1716910256015,-500.0,0.00029041,2]
[328128024,1716910256025,-500.0,0.00029041,2]
[328128025,1716910256037,-696.91,0.00029041,2]
[328128026,1716910256047,-500.0,0.00029041,2]
[328128027,1716910256057,-637.5,0.00029041,2]
[328128028,1716910256067,-500.0,0.00029041,2]
[328128029,1716910256077,-500.0,0.00029041,2]
[328128030,1716910256087,-500.0,0.00029041,2]
[328128031,1716910256097,-500.0,0.00029041,2]
[328128032,1716910256107,-500.0,0.00029041,2]
[328128033,1716910256116,-2035.74,0.00029041,2]
[328128034,1716910256126,-500.0,0.00029041,2]
[328128035,1716910256136,-626.55591148,0.00029041,2]
[328128036,1716910256146,-500.0,0.00029041,2]
[328128037,1716910256155,-5000.0,0.00029111,2]
[328128038,1716910256165,-628.86268748,0.00029147,2]
[328128039,1716910256174,-544.0,0.000292,2]
[328128040,1716910256184,-800.0,0.00029218,2]
[328128041,1716910256193,-500.0,0.00029218,2]
[328128042,1716910256203,-2502.39,0.00029222,2]
[328128043,1716910256217,-168.43928935,0.00029272,2]
[328128044,1716910256226,-10000.0,0.00029282,2]
[328128045,1716910256235,-155.58720731,0.00029284,2]
[328128046,1716910256244,-163.02468081,0.00029302,2]
[328128047,1716910256253,-300.0,0.00029313,2]
[328128048,1716910256262,-278.24931682,0.00029314,2]
[328128049,1716910256272,-500.0,0.00029315,2]
[328128050,1716910256281,-3757.66,0.00029315,2]
[328128051,1716910256290,-500.0,0.00029315,2]
[328128052,1716910256299,-500.0,0.00029315,2]
[328128053,1716910256308,-500.0,0.00029315,2]
[328128054,1716910256318,-500.0,0.00029315,2]
[328128055,1716910256327,-169.83598647,0.00029315,2]
[328128056,1716910256337,-500.0,0.00029315,2]
[328128057,1716910256346,-500.0,0.00029315,2]
[328128058,1716910256356,-500.0,0.00029315,2]
[328128059,1716910256365,-6398.3,0.00029315,2]
[328128060,1716910256374,-500.0,0.00029315,2]
[328128061,1716910256383,-500.0,0.00029315,2]
[328128062,1716910256393,-560.14,0.00029315,2]
[328128063,1716910256401,-500.0,0.00029315,2]
[328128064,1716910256411,-500.0,0.00029315,2]
[328128065,1716910256420,-500.0,0.00029315,2]
[328128066,1716910256429,-500.0,0.00029315,2]
[328128067,1716910256439,-500.0,0.00029315,2]
[328128068,1716910256448,-500.0,0.00029315,2]
[328128069,1716910256460,-500.0,0.00029315,2]
[328128070,1716910256469,-500.0,0.00029315,2]
[328128071,1716910256478,-162.23,0.00029315,2]
[328128072,1716910256488,-506.32,0.00029315,2]
[328128073,1716910256497,-500.0,0.00029315,2]
[328128074,1716910256506,-500.0,0.00029315,2]
[328128075,1716910256515,-500.0,0.00029315,2]
[328128076,1716910256524,-547.67,0.00029315,2]
[328128077,1716910256534,-769.78,0.00029315,2]
[328128078,1716910256544,-437.62289831,0.00029315,2]
[328128079,1716910256553,-500.0,0.00029315,2]
[328128080,1716910256562,-500.0,0.00029315,2]
[328128081,1716910256670,-500.0,0.00029315,2]
[328128082,1716910256680,-556.78,0.00029315,2]
[328128083,1716910256690,-500.0,0.00029315,2]
[328128084,1716910256699,-500.0,0.00029315,2]
[328128085,1716910256709,-500.0,0.00029315,2]
[328128086,1716910256719,-760.43,0.00029315,2]
[328128087,1716910256728,-500.0,0.00029315,2]
[328128088,1716910256738,-500.0,0.00029315,2]
[328128089,1716910256747,-406.87,0.00029315,2]
[328128090,1716910256756,-500.0,0.00029315,2]
[328128091,1716910256765,-500.0,0.00029315,2]
[328128092,1716910256775,-1465.17,0.00029315,2]
[328128093,1716910256785,-500.0,0.00029315,2]
[328128094,1716910256795,-500.0,0.00029315,2]
[328128095,1716910256804,-500.0,0.00029315,2]
[328128096,1716910256814,-500.0,0.00029315,2]
[328128097,1716910256823,-500.0,0.00029315,2]
[328128098,1716910256833,-1820.24,0.00029315,2]
[328128099,1716910256842,-500.0,0.00029315,2]
[328128100,1716910256851,-175.87314046,0.00029315,2]
[328128101,1716910256860,-500.0,0.00029315,2]
[328128102,1716910256870,-500.0,0.00029315,2]
[328128103,1716910256880,-500.0,0.00029315,2]
[328128104,1716910256889,-696.91,0.00029315,2]
[328128105,1716910256899,-500.0,0.00029315,2]
[328128106,1716910256909,-637.5,0.00029315,2]
[328128107,1716910256918,-321.88,0.00029315,2]
[328128108,1716910256929,-500.0,0.00029315,2]
[328128109,1716910256942,-500.0,0.00029315,2]
[328128110,1716910256951,-2035.74,0.00029315,2]
[328128111,1716910256963,-500.0,0.00029315,2]
[328128112,1716910256974,-500.0,0.00029315,2]
[328128113,1716910256983,-369.0,0.00029353,2]
[328128114,1716910256992,-369.0,0.00029353,2]
[328128115,1716910257001,-369.0,0.00029353,2]
[328128116,1716910257011,-151.40096085,0.00029354,2]
[328128117,1716910257021,-5000.0,0.00029358,2]
[328128118,1716910257030,-1090.15324728,0.000294,2]
[328128119,1716910257039,-151.54,0.00029412,2]
[328128120,1716910257048,-278.24931682,0.00029415,2]
[328128121,1716910257058,-153.82568732,0.00029425,2]
[328128122,1716910257067,-628.86268748,0.00029494,2]
[328128123,1716910257075,-153.30098332,0.00029498,2]
[328128124,1716910257085,-226.12840034,0.000295,3]
[328128125,1716910257094,-150.0,0.000295,6]
[328128126,1716910257104,-344.39583779,0.00029507,2]
[328128127,1716910257114,-1807.67972816,0.00029528,2]
[328128128,1716910257124,-153.82568732,0.00029534,2]
[328128129,1716910257134,-154.55028085,0.00029555,2]
[328128130,1716910257143,-157.53000092,0.00029558,2]
[328128131,1716910257154,-500.0,0.00029589,2]
[328128132,1716910257162,-3757.66,0.00029589,2]
[328128133,1716910257172,-500.0,0.00029589,2]
[328128134,1716910257181,-500.0,0.00029589,2]
[328128135,1716910257190,-397.08363654,0.00029589,2]
[328128136,1716910257199,-523.56815851,0.00029589,2]
[328128137,1716910257210,-500.0,0.00029589,2]
[328128138,1716910257219,-500.0,0.00029589,2]
[328128139,1716910257228,-500.0,0.00029589,2]
[328128140,1716910257238,-6398.3,0.00029589,2]
[328128141,1716910257247,-500.0,0.00029589,2]
[328128142,1716910257256,-500.0,0.00029589,2]
[328128143,1716910257265,-151.0,0.00029589,7]
[328128144,1716910257275,-286.847631,0.00029589,7]
[328128145,1716910257284,-286.847631,0.00029589,7]
[328128146,1716910257293,-151.0,0.00029589,7]
[328128147,1716910257302,-560.14,0.00029589,2]
[328128148,1716910257311,-460.706918,0.00029589,7]
[328128149,1716910257321,-460.706918,0.00029589,7]